lending/lending_fUSD_20251116
["ID","MTS","AMOUNT","RATE_DAILY","PERIOD"]
[394158604,1763333441168,-203.66649798,0.00016999,2]
[394158605,1763333441177,-150.0,0.00016999,2]
[394158606,1763333441187,-500.0,0.00016999,2]
[394158607,1763333441196,-500.0,0.00016999,2]
[394158608,1763333441205,-150.0,0.00016999,2]
[394158609,1763333441215,-500.0,0.00016999,2]
[394158610,1763333441224,-150.0,0.00016999,2]
[394158611,1763333441235,-150.0,0.00016999,2]
[394158612,1763333441245,-150.0,0.00016999,2]
[394158613,1763333441254,-150.0,0.00016999,2]
[394158614,1763333441264,-150.0,0.00016999,2]
[394158615,1763333441274,-150.95244092,0.00016999,2]
[394158616,1763333441284,-205.3362908,0.00016999,2]
[394158617,1763333441294,-500.0,0.00016999,2]
[394158618,1763333441304,-500.0,0.00016999,2]
[394158619,1763333441314,-839.0,0.00016999,2]
[394158620,1763333441472,-500.0,0.00016999,2]
[394158621,1763333441482,-773.0,0.00016999,2]
[394158622,1763333441492,-150.0,0.00017019,2]
[394158623,1763333441502,-3311.25678397,0.0001704,2]
[394158624,1763333441511,-152.92386591,0.00017054,2]
[394158625,1763333441520,-500.0,0.00017054,2]
[394158626,1763333441529,-591.45812816,0.00017054,2]
[394158627,1763333441539,-500.0,0.00017054,2]
[394158628,1763333441549,-150.0,0.00017054,2]
[394158629,1763333441558,-150.0,0.00017054,2]
[394158630,1763333441567,-500.0,0.00017054,2]
[394158631,1763333441577,-500.0,0.00017054,2]
[394158632,1763333441587,-839.0,0.00017054,2]
[394158633,1763333441596,-500.0,0.00017054,2]
[394158634,1763333441605,-773.0,0.00017054,2]
[394158635,1763333441615,-1600.0,0.00017057,2]
[394158636,1763333441624,-541.9,0.0001706,2]
[394158637,1763333441633,-502.20263233,0.00017073,2]
[394158638,1763333441643,-500.0,0.00017073,2]
[394158639,1763333441652,-278.41536593,0.00017073,2]
[394158640,1763333441661,-358.64,0.00017106,2]
[394158641,1763333441670,-500.0,0.00017109,2]
[394158642,1763333441680,-500.0,0.00017109,2]
[394158643,1763333441689,-150.0,0.00017109,2]
[394158644,1763333441699,-150.0,0.00017109,2]
[394158645,1763333441708,-500.0,0.00017109,2]
[394158646,1763333441717,-500.0,0.00017109,2]
[394158647,1763333441727,-839.0,0.00017109,2]
[394158648,1763333441737,-500.0,0.00017109,2]
[394158649,1763333441746,-773.0,0.00017109,2]
[394158650,1763333441755,-153.81,0.00017119,2]
[394158651,1763333441764,-150.0,0.00017124,2]
[394158652,1763333441773,-537.2697412,0.00017163,2]
[394158653,1763333441783,-500.0,0.00017163,2]
[394158654,1763333441793,-150.0,0.00017163,2]
[394158655,1763333441802,-150.0,0.00017163,2]
[394158656,1763333441811,-500.0,0.00017163,2]
[394158657,1763333441821,-500.0,0.00017163,2]
[394158658,1763333441830,-839.0,0.00017163,2]
[394158659,1763333441840,-500.0,0.00017163,2]
[394158660,1763333441849,-773.0,0.00017163,2]
[394158661,1763333441859,-238.20549546,0.00017169,2]
[394158662,1763333441869,-500.0,0.00017173,2]
[394158663,1763333441878,-500.0,0.00017173,2]
[394158664,1763333441888,-500.0,0.00017173,2]
[394158665,1763333441902,-200.0,0.00017195,2]
[394158666,1763333441913,-200.0,0.00017195,2]
[394158667,1763333441923,-500.0,0.00017218,2]
[394158668,1763333441933,-220.22039718,0.00017218,2]
[394158669,1763333441942,-166.59711047,0.00017218,2]
[394158670,1763333441952,-500.0,0.00017218,2]
[394158671,1763333441961,-500.0,0.00017218,2]
[394158672,1763333441973,-839.0,0.00017218,2]
[394158673,1763333441983,-500.0,0.00017218,2]
[394158674,1763333441992,-773.0,0.00017218,2]
[394158675,1763333442001,-1000.0,0.00017221,2]
[394158676,1763333442011,-1000.0,0.00017221,2]
[394158677,1763333442020,-150.0,0.00017228,2]
[394158678,1763333442029,-450.73708573,0.00017252,2]
[394158679,1763333442038,-500.0,0.00017273,2]
[394158680,1763333442047,-500.0,0.00017273,2]
[394158681,1763333442057,-500.0,0.00017273,2]
[394158682,1763333442067,-839.0,0.00017273,2]
[394158683,1763333442077,-500.0,0.00017273,2]
[394158684,1763333442087,-773.0,0.00017273,2]
[394158685,1763333442096,-161.96,0.00017273,2]
[394158686,1763333442105,-500.0,0.00017328,2]
[394158687,1763333442115,-440.96132971,0.00017328,2]
[394158688,1763333442124,-500.0,0.00017328,2]
[394158689,1763333442133,-839.0,0.00017328,2]
[394158690,1763333442142,-500.0,0.00017328,2]
[394158691,1763333442152,-773.0,0.00017328,2]
[394158692,1763333442161,-150.0,0.00017333,2]
[394158693,1763333442170,-500.0,0.00017383,2]
[394158694,1763333442180,-500.0,0.00017383,2]
[394158695,1763333442190,-839.0,0.00017383,2]
[394158696,1763333442199,-500.0,0.00017383,2]
[394158697,1763333442208,-773.0,0.00017383,2]
[394158698,1763333442218,-150.0,0.00017385,2]
[394158699,1763333442227,-916.01203023,0.0001739,2]
[394158700,1763333442237,-150.0,0.00017437,2]
[394158701,1763333442247,-500.0,0.00017437,2]
[394158702,1763333442257,-500.0,0.00017437,2]
[394158703,1763333442267,-839.0,0.00017437,2]
[394158704,1763333442277,-500.0,0.00017437,2]
[394158705,1763333442287,-773.0,0.00017437,2]
[394158706,1763333442296,-4850.28,0.00017478,2]
[394158707,1763333442306,-900.0,0.0001749,2]
[394158708,1763333442316,-500.0,0.00017492,2]
[394158709,1763333442325,-500.0,0.00017492,2]
[394158710,1763333442335,-839.0,0.00017492,2]
[394158711,1763333442345,-500.0,0.00017492,2]
[394158712,1763333442355,-773.0,0.00017492,2]
[394158713,1763333442364,-235.09790462,0.00017514,2]
[394158714,1763333442374,-150.0,0.00017542,2]
[394158715,1763333442383,-500.0,0.00017547,2]
[394158716,1763333442394,-500.0,0.00017547,2]
[394158717,1763333442404,-839.0,0.00017547,2]
[394158718,1763333442414,-500.0,0.00017547,2]
[394158719,1763333442423,-773.0,0.00017547,2]
[394158720,1763333442433,-161.98,0.00017547,2]
[394158721,1763333442442,-1300.0,0.000176,6]
[394158722,1763333442451,-500.0,0.00017602,2]
[394158723,1763333442462,-500.0,0.00017602,2]
[394158724,1763333442472,-839.0,0.00017602,2]
[394158725,1763333442483,-500.0,0.00017602,2]
[394158726,1763333442493,-773.0,0.00017602,2]
[394158727,1763333442503,-1537.8414214,0.00017616,2]
[394158728,1763333442513,-150.0,0.00017646,2]
[394158729,1763333442522,-500.0,0.00017657,2]
[394158730,1763333442532,-500.0,0.00017657,2]
[394158731,1763333442542,-839.0,0.00017657,2]
[394158732,1763333442551,-500.0,0.00017657,2]
[394158733,1763333442561,-773.0,0.00017657,2]
[394158734,1763333442571,-2700.0,0.000177,6]
[394158735,1763333442580,-500.0,0.00017711,2]
[394158736,1763333442590,-374.22497362,0.00017711,2]
[394158737,1763333442600,-839.0,0.00017711,2]
[394158738,1763333442610,-500.0,0.00017711,2]
[394158739,1763333442622,-773.0,0.00017711,2]
[394158740,1763333442632,-150.0,0.0001775,2]
[394158741,1763333442642,-500.0,0.00017751,2]
[394158742,1763333442652,-500.0,0.00017766,2]
[394158743,1763333442662,-839.0,0.00017766,2]
[394158744,1763333442673,-773.0,0.00017766,2]
[394158745,1763333442682,-251.42775698,0.00017768,2]
[394158746,1763333442692,-1000.0,0.00017768,2]
[394158747,1763333442702,-222.2113773,0.00017776,2]
[394158748,1763333442712,-12280.7606163,0.0001778,2]
[394158749,1763333442723,-187.79190933,0.00017799,2]
[394158750,1763333442734,-1131.66864486,0.000178,2]
[394158751,1763333442744,-168.93567833,0.000178,2]
[394158752,1763333442753,-345.36,0.000178,2]
[394158753,1763333442763,-4000.0,0.000178,6]
[394158754,1763333442773,-500.0,0.00017821,2]
[394158755,1763333442783,-839.0,0.00017821,2]
[394158756,1763333442792,-773.0,0.00017821,2]
[394158757,1763333442801,-195.0,0.00017844,2]
[394158758,1763333442810,-2481.33936088,0.00017844,4]
[394158759,1763333442820,-300.0,0.00017844,2]
[394158760,1763333442830,-300.0,0.00017844,2]
[394158761,1763333442839,-300.0,0.00017844,2]
[394158762,1763333442849,-300.0,0.00017844,2]
[394158763,1763333442858,-300.0,0.00017844,2]
[394158764,1763333442868,-250.0,0.00017844,2]
[394158765,1763333442878,-2500.0,0.00017844,2]
[394158766,1763333442893,-300.0,0.00017844,2]
[394158768,1763333442902,-300.0,0.00017844,2]
[394158769,1763333442912,-195.0,0.00017844,2]
[394158770,1763333442921,-391.47172431,0.00017844,2]
[394158771,1763333442931,-300.0,0.00017844,2]
[394158772,1763333442940,-767.9439642,0.00017844,4]
[394158774,1763333442950,-420.0,0.00017848,2]
[394158775,1763333442959,-250.0,0.00017854,2]
[394158776,1763333442972,-150.0,0.00017855,2]
[394158777,1763333442983,-150.0,0.00017855,2]
[394158778,1763333442992,-500.0,0.00017873,2]
[394158779,1763333443002,-500.78530032,0.00017873,2]
[394158780,1763333443012,-500.0,0.00017873,2]
[394158781,1763333443021,-500.0,0.00017873,2]
[394158782,1763333443030,-500.0,0.00017873,2]
[394158783,1763333443040,-500.0,0.00017873,2]
[394158784,1763333443050,-500.99994744,0.00017873,2]
[394158785,1763333443059,-500.0,0.00017873,2]
[394158786,1763333443070,-500.0,0.00017873,2]
[394158787,1763333443079,-500.0,0.00017873,2]
[394158788,1763333443089,-528.60723312,0.00017873,2]
[394158789,1763333443099,-172.43498746,0.00017873,2]
[394158790,1763333443108,-161.13351273,0.00017873,2]
[394158791,1763333443117,-500.0,0.00017873,2]
[394158792,1763333443127,-500.0,0.00017873,2]
[394158793,1763333443137,-500.0,0.00017873,2]
[394158794,1763333443147,-500.0,0.00017873,2]
[394158796,1763333443157,-500.0,0.00017873,2]
[394158798,1763333443166,-503.61158454,0.00017873,2]
[394158800,1763333443176,-500.0,0.00017873,2]
[394158802,1763333443186,-502.09786773,0.00017873,2]
[394158804,1763333443196,-167.67940878,0.00017873,2]
[394158806,1763333443206,-500.0,0.00017873,2]
[394158807,1763333443216,-500.0,0.00017873,2]
[394158808,1763333443225,-500.0,0.00017873,2]
[394158809,1763333443236,-158.54598466,0.00017873,2]
[394158810,1763333443246,-500.0,0.00017873,2]
[394158811,1763333443256,-500.0,0.00017873,2]
[394158812,1763333443384,-500.0,0.00017873,2]
[394158813,1763333443395,-503.19829776,0.00017873,2]
[394158814,1763333443404,-239.30234825,0.00017876,2]
[394158815,1763333443414,-839.0,0.00017876,2]
[394158816,1763333443424,-773.0,0.00017876,2]
[394158817,1763333443433,-163.64,0.00017889,2]
[394158818,1763333443443,-500.0,0.00017899,2]
[394158819,1763333443452,-500.0,0.00017899,2]
[394158820,1763333443462,-500.0,0.00017899,2]
[394158821,1763333443472,-415.64950856,0.00017899,2]
[394158822,1763333443481,-426.5844,0.000179,2]
[394158823,1763333443491,-5400.0,0.000179,6]
[394158824,1763333443501,-587.2480088,0.000179,2]
[394158825,1763333443511,-500.0,0.000179,2]
[394158826,1763333443521,-500.0,0.000179,2]
[394158827,1763333443530,-500.0,0.000179,2]
[394158828,1763333443539,-500.0,0.000179,2]
[394158829,1763333443548,-500.0,0.000179,2]
[394158830,1763333443558,-839.0,0.00017931,2]
[394158831,1763333443567,-773.0,0.00017931,2]
[394158832,1763333443577,-1680.0,0.00017938,2]
[394158833,1763333443586,-290.59816084,0.00017948,2]
[394158834,1763333443595,-150.0,0.00017959,2]
[394158835,1763333443604,-500.0,0.00017973,2]
[394158836,1763333443613,-500.0,0.00017973,2]
[394158837,1763333443623,-482.77598454,0.00017973,2]
[394158838,1763333443632,-545.21234434,0.00017973,2]
[394158839,1763333443641,-500.0,0.00017982,2]
[394158840,1763333443652,-839.0,0.00017985,2]
[394158841,1763333443661,-773.0,0.00017985,2]
[394158842,1763333443671,-169.51824298,0.0001799,2]
[394158843,1763333443681,-500.0,0.00017999,2]
[394158844,1763333443691,-500.0,0.00017999,2]
[394158845,1763333443700,-500.0,0.00017999,2]
[394158846,1763333443710,-500.0,0.00017999,2]
[394158847,1763333443719,-300.0,0.00017999,2]
[394158848,1763333443728,-300.0,0.00017999,2]
[394158849,1763333443741,-300.0,0.00017999,2]
[394158850,1763333443751,-500.0,0.00017999,2]
[394158851,1763333443761,-282.4309762,0.00017999,2]
[394158852,1763333443771,-515.24033792,0.00017999,2]
[394158853,1763333443781,-500.0,0.00017999,2]
[394158854,1763333443790,-500.0,0.00017999,2]
[394158855,1763333443800,-326.35390775,0.00017999,2]
[394158856,1763333443810,-500.0,0.00017999,2]
[394158857,1763333443819,-500.0,0.00017999,2]
[394158858,1763333443828,-500.0,0.00017999,2]
[394158859,1763333443837,-500.0,0.00017999,2]
[394158860,1763333443849,-500.0,0.00017999,2]
[394158861,1763333443858,-500.0,0.00017999,2]
[394158862,1763333443868,-500.0,0.00017999,2]
[394158863,1763333443877,-647.83006411,0.00017999,2]
[394158864,1763333443886,-500.0,0.00017999,2]
[394158865,1763333443900,-500.0,0.00017999,2]
[394158866,1763333443909,-833.21099712,0.00017999,2]
[394158867,1763333443919,-500.0,0.00017999,2]
[394158868,1763333443928,-500.0,0.00017999,2]
[394158869,1763333443939,-833.21099712,0.00017999,2]
[394158870,1763333443949,-612.94968459,0.00017999,2]
[394158871,1763333443958,-278.16012269,0.00017999,2]
[394158872,1763333443968,-503.92598697,0.00017999,2]
[394158873,1763333443978,-462.86851563,0.00017999,2]
[394158874,1763333443992,-833.21099712,0.00017999,2]
[394158875,1763333444002,-500.0,0.00017999,2]
[394158876,1763333444012,-460.50878874,0.00017999,2]
[394158877,1763333444021,-833.21099712,0.00017999,2]
[394158878,1763333444031,-833.21099712,0.00017999,2]
[394158879,1763333444041,-833.21099712,0.00017999,2]
[394158880,1763333444051,-833.21099712,0.00017999,2]
[394158881,1763333444061,-833.21099712,0.00017999,2]
[394158882,1763333444073,-833.21099712,0.00017999,2]
[394158883,1763333444083,-833.21099712,0.00017999,2]
[394158884,1763333444092,-833.21099712,0.00017999,2]
[394158885,1763333444102,-833.21099712,0.00017999,2]
[394158886,1763333444111,-833.21099712,0.00017999,2]
[394158887,1763333444121,-833.21099712,0.00017999,2]
[394158888,1763333444130,-833.21099712,0.00017999,2]
[394158889,1763333444140,-833.21099712,0.00017999,2]
[394158890,1763333444149,-833.21099712,0.00017999,2]
[394158891,1763333444159,-833.21099712,0.00017999,2]
[394158892,1763333444168,-833.21099712,0.00017999,2]
[394158893,1763333444175,-833.21099712,0.00017999,2]
[394158894,1763333444183,-833.21099712,0.00017999,2]
[394158895,1763333444191,-833.21099712,0.00017999,2]
[394158896,1763333444201,-833.21099712,0.00017999,2]
[394158897,1763333444210,-833.21099712,0.00017999,2]
[394158898,1763333444220,-833.21099712,0.00017999,2]
[394158899,1763333444229,-833.21099712,0.00017999,2]
[394158900,1763333444243,-833.21099712,0.00017999,2]
[394158901,1763333444254,-833.21099712,0.00017999,2]
[394158902,1763333444264,-833.21099712,0.00017999,2]
[394158903,1763333444273,-500.0,0.00017999,2]
[394158904,1763333444283,-833.21099712,0.00017999,2]
[394158905,1763333444293,-833.21099712,0.00017999,2]
[394158906,1763333444303,-833.21099712,0.00017999,2]
[394158907,1763333444313,-833.21099712,0.00017999,2]
[394158908,1763333444323,-833.21099712,0.00017999,2]
[394158909,1763333444332,-833.21099712,0.00017999,2]
[394158910,1763333444342,-833.21099712,0.00017999,2]
[394158911,1763333444351,-833.21099712,0.00017999,2]
[394158912,1763333444361,-833.21099712,0.00017999,2]
[394158913,1763333444370,-833.21099712,0.00017999,2]
[394158914,1763333444381,-833.21099712,0.00017999,2]
[394158915,1763333444391,-833.21099712,0.00017999,2]
[394158916,1763333444401,-833.21099712,0.00017999,2]
[394158917,1763333444410,-833.21099712,0.00017999,2]
[394158918,1763333444419,-833.21099712,0.00017999,2]
[394158919,1763333444429,-833.21099712,0.00017999,2]
[394158920,1763333444439,-833.21099712,0.00017999,2]
[394158921,1763333444448,-833.21099712,0.00017999,2]
[394158922,1763333444458,-833.21099712,0.00017999,2]
[394158923,1763333444468,-833.21099712,0.00017999,2]
[394158924,1763333444478,-833.21099712,0.00017999,2]
[394158925,1763333444490,-833.21099712,0.00017999,2]
[394158926,1763333444499,-947733.13577127,0.00018,2]
[394158927,1763333444508,-1525.1570926,0.00018,2]
[394158928,1763333444518,-7210.7262906,0.00018,2]
[394158929,1763333444527,-6014.1519382,0.00018,2]
[394158930,1763333444536,-18597.3970255,0.00018,2]
[394158931,1763333444546,-429032.8816335,0.00018,2]
[394158932,1763333444555,-18113.9308524,0.00018,2]
[394158933,1763333444565,-62722.2521785,0.00018,2]
[394158934,1763333444574,-166.66,0.00018025,2]
[394158935,1763333444584,-839.0,0.0001804,2]
[394158936,1763333444593,-773.0,0.0001804,2]
[394158937,1763333444603,-150.0,0.00018064,2]
[394158938,1763333444613,-153.81,0.0001807,2]
[394158939,1763333444622,-839.0,0.00018095,2]
[394158940,1763333444632,-773.0,0.00018095,2]
[394158941,1763333444641,-839.0,0.0001815,2]
[394158942,1763333444651,-773.0,0.0001815,2]
[394158943,1763333444660,-150.0,0.00018168,2]
[394158944,1763333444669,-839.0,0.00018204,2]
[394158945,1763333444679,-773.0,0.00018204,2]
[394158946,1763333444688,-852.96978978,0.00018259,2]
[394158947,1763333444697,-790.6147218,0.00018259,2]
[394158948,1763333444707,-150.0,0.00018272,2]
[394158949,1763333444716,-150.0,0.00018325,2]
[394158950,1763333444725,-150.0,0.00018377,2]
[394158951,1763333444734,-166.66,0.00018382,2]
[394158952,1763333444743,-1000.0,0.00018421,2]
[394158953,1763333444752,-500.0,0.00018421,2]
[394158954,1763333444762,-317.62857523,0.00018421,2]
[394158955,1763333444771,-308.20130097,0.00018421,2]
[394158956,1763333444780,-213.97835211,0.00018421,2]
[394158957,1763333444790,-1000.0,0.00018421,2]
[394158958,1763333444799,-457.63452341,0.00018421,2]
[394158959,1763333444809,-505.52335219,0.00018421,2]
[394158960,1763333444819,-1004.62385187,0.00018421,2]
[394158961,1763333444828,-180.5217076,0.00018421,2]
[394158962,1763333444837,-506.67445187,0.00018421,2]
[394158963,1763333444847,-500.0,0.00018421,2]
[394158964,1763333444857,-500.0,0.00018421,2]
[394158965,1763333444866,-1000.0,0.00018421,2]
[394158966,1763333444876,-1000.0,0.00018421,2]
[394158967,1763333444888,-1002.51981297,0.00018421,2]
[394158968,1763333444901,-1000.0,0.00018421,2]
[394158969,1763333444909,-300.0,0.00018472,2]
[394158970,1763333444918,-150.0,0.00018481,2]
[394158971,1763333444927,-276.36384412,0.00018499,2]
[394158972,1763333444937,-223.23374359,0.000185,5]
[394158973,1763333444947,-500.0,0.00018501,2]
[394158974,1763333444956,-436.48162818,0.00018501,2]
[394158975,1763333444966,-500.0,0.00018501,2]
[394158976,1763333444976,-500.0,0.00018501,2]
[394158977,1763333444988,-500.0,0.00018501,2]
[394158978,1763333444997,-516.38749174,0.00018501,2]
[394158979,1763333445007,-500.0,0.00018501,2]
[394158980,1763333445016,-500.0,0.00018501,2]
[394158981,1763333445137,-500.0,0.00018501,2]
[394158982,1763333445147,-164.12006615,0.00018501,2]
[394158983,1763333445156,-500.0,0.00018501,2]
[394158984,1763333445165,-375.3158285,0.00018501,2]
[394158985,1763333445175,-500.0,0.00018501,2]
[394158986,1763333445184,-537.98410489,0.00018501,2]
[394158987,1763333445193,-500.0,0.00018501,2]
[394158988,1763333445203,-213.74767997,0.00018501,2]
[394158989,1763333445212,-219.71972845,0.00018501,2]
[394158990,1763333445221,-366.99815821,0.00018501,2]
[394158991,1763333445230,-500.0,0.00018501,2]
[394158992,1763333445242,-500.0,0.00018501,2]
[394158993,1763333445251,-500.0,0.00018501,2]
[394158994,1763333445261,-435.78027671,0.00018501,2]
[394158995,1763333445270,-500.0,0.00018501,2]
[394158996,1763333445279,-276.20831964,0.00018501,2]
[394158997,1763333445289,-518.39619207,0.00018501,2]
[394158998,1763333445298,-437.07502368,0.00018501,2]
[394158999,1763333445308,-1000.0,0.00018521,2]
[394159000,1763333445317,-150.0,0.00018586,2]
[394159001,1763333445326,-150.0,0.0001869,2]
[394159002,1763333445335,-166.66,0.00018739,2]
[394159003,1763333445345,-150.0,0.00018795,2]
[394159004,1763333445354,-150.0,0.00018795,2]
[394159005,1763333445364,-144490.93,0.00018813,2]
[394159006,1763333445373,-352.81716112,0.00018968,2]
[394159007,1763333445382,-509.90200273,0.00018968,2]
[394159008,1763333445391,-1500.0,0.00018968,2]
[394159009,1763333445400,-1500.0,0.00018968,2]
[394159010,1763333445410,-1500.0,0.00018968,2]
[394159011,1763333445419,-39085.63072975,0.00019,2]
[394159012,1763333445428,-300.0,0.00019,2]
[394159013,1763333445438,-151.0,0.00019,2]
[394159014,1763333445447,-151.0,0.00019,2]
[394159015,1763333445456,-151.0,0.00019,2]
[394159016,1763333445466,-388.37634961,0.00019,2]
[394159017,1763333445475,-153.81,0.00019021,2]
[394159018,1763333445485,-1500.0,0.00019068,2]
[394159019,1763333445495,-151.0,0.00019178,2]
[394159020,1763333445503,-150.0,0.00019178,2]
[394159021,1763333445513,-1600.0,0.0001919,2]
[394159022,1763333445522,-500.0,0.00019238,2]
[394159023,1763333445532,-641.95222852,0.00019238,2]
[394159024,1763333445541,-917.35,0.00019339,2]
[394159025,1763333445550,-2708.06,0.00019339,2]
[394159026,1763333445559,-151.0,0.00019386,2]
[394159027,1763333445572,-587.0,0.00019508,2]
[394159028,1763333445582,-334.38895643,0.00019516,2]
[394159029,1763333445592,-2000.0,0.00019516,2]
[394159030,1763333445602,-2000.0,0.00019516,2]
[394159031,1763333445612,-1037.47586497,0.00019616,2]
[394159032,1763333445621,-2351.0,0.00019703,2]
[394159033,1763333445630,-250.0,0.00019726,2]
[394159034,1763333445640,-156.587,0.00019726,2]
[394159035,1763333445649,-151.0,0.00019793,2]
[394159036,1763333445658,-151.0,0.00019793,2]
[394159037,1763333445667,-151.0,0.00019793,2]
[394159038,1763333445677,-151.0,0.00019793,2]
[394159039,1763333445686,-151.0,0.00019793,2]
[394159040,1763333445695,-151.0,0.00019793,2]
[394159041,1763333445704,-151.0,0.00019793,2]
[394159042,1763333445714,-12280.76061628,0.00019793,2]
[394159043,1763333445724,-4880.95327477,0.000199,3]
[394159044,1763333445735,-151.0,0.000199,2]
[394159045,1763333445745,-1464.367542,0.000199,2]
[394159046,1763333445754,-151.0,0.000199,2]
[394159047,1763333445763,-1464.367542,0.000199,2]
[394159048,1763333445773,-1464.367542,0.000199,2]
[394159049,1763333445782,-1464.367542,0.000199,2]
[394159050,1763333445791,-151.0,0.000199,2]
[394159051,1763333445801,-153.81,0.00019972,2]
[394159052,1763333445811,-500.0,0.00019999,2]
[394159053,1763333445820,-500.0,0.00019999,2]
[394159054,1763333445829,-169.13557338,0.00020016,2]
[394159055,1763333445839,-500.0,0.00020064,2]
[394159056,1763333445848,-2500.0,0.00020064,2]
[394159057,1763333445858,-429.518949,0.00020116,2]
[394159058,1763333445877,-429.518949,0.00020116,2]
[394159060,1763333445897,-429.518949,0.00020116,2]
[394159061,1763333445916,-429.518949,0.00020116,2]
[394159062,1763333445937,-159.588753,0.00020116,2]
[394159063,1763333445952,-151.0,0.00020116,2]
[394159064,1763333445970,-151.0,0.00020116,2]
[394159065,1763333445989,-151.0,0.00020116,2]
[394159066,1763333446008,-156.089534,0.00020116,2]
[394159067,1763333446027,-2302.17,0.00020156,2]
[394159068,1763333446045,-151.0,0.00020194,2]
[394159069,1763333446064,-350.0,0.00020274,2]
[394159070,1763333446080,-162.380719,0.00020274,2]
[394159071,1763333446096,-1341.9386851,0.00020318,2]
[394159072,1763333446112,-300.0,0.00020408,2]
[394159073,1763333446130,-187.79190927,0.00020415,2]
[394159074,1763333446145,-151.0,0.00020548,2]
[394159075,1763333446159,-151.0,0.00020548,2]
[394159076,1763333446173,-151.0,0.00020548,2]
[394159077,1763333446188,-151.0,0.00020548,2]
[394159078,1763333446203,-205.409713,0.00020548,2]
[394159079,1763333446218,-205.409713,0.00020548,2]
[394159080,1763333446236,-205.409713,0.00020548,2]
[394159081,1763333446253,-205.409713,0.00020548,2]
[394159082,1763333446268,-541.9,0.00020598,2]
[394159083,1763333446284,-891.53,0.00020599,2]
[394159084,1763333446299,-2553.92965,0.000206,2]
[394159085,1763333446314,-2553.92964,0.0002061,2]
[394159086,1763333446329,-500.0,0.00020612,2]
[394159087,1763333446344,-2553.92965,0.0002067,2]
[394159088,1763333446359,-2553.92965,0.0002072,2]
[394159089,1763333446374,-2553.92964,0.0002078,2]
[394159090,1763333446389,-916.0120302,0.00020811,2]
[394159091,1763333446404,-450.0,0.00020822,2]
[394159092,1763333446418,-168.3888056,0.00020822,2]
[394159093,1763333446435,-299.4269937,0.00020836,2]
[394159094,1763333446449,-2553.92965,0.0002085,2]
[394159095,1763333446464,-153.81,0.00020924,2]
[394159096,1763333446480,-1608.930512,0.00020957,2]
[394159097,1763333446498,-4149.6401766,0.00021316,2]
[394159098,1763333446514,-95730.1755878,0.00021316,2]
[394159099,1763333446529,-13995.2261734,0.00021316,2]
[394159100,1763333446544,-1600.0,0.00021322,2]
[394159101,1763333446559,-353.97504339,0.0002137,2]
[394159102,1763333446574,-174.61919141,0.0002137,2]
[394159103,1763333446589,-479.06402154,0.00021616,2]
[394159104,1763333446603,-359.0009228,0.00021617,2]
[394159105,1763333446618,-3292.0,0.00021643,2]
[394159106,1763333446634,-1131.66864481,0.00021723,2]
[394159107,1763333446651,-300.0,0.00021778,2]
[394159108,1763333446683,-4041.764292,0.00021798,2]
[394159110,1763333446708,-12280.76061628,0.00021807,2]
[394159114,1763333446728,-153.81,0.00021875,2]
[394159117,1763333446748,-5000.0,0.00021918,2]
[394159119,1763333446766,-260.1322394,0.00021918,2]